{"text_format":"1","workbook":"xlsx","n_sheets":3,"sheets":["SPA525G","Sidecar SPA500S","Dial Outside Line"],"not_rendered":{"charts":0,"images":0,"macros":1,"external_links":0,"defined_names":1,"comments":0,"pivot_tables":0},"unopened":[],"bounds":{"document_bytes":16777216,"sheet_cells":100000,"rows_first":2000,"rows_last":500,"rows_between":2000,"halvings":0,"cell_chars":16384,"cell_head_chars":4096},"cells_cut":0,"cells_raw":0,"read":"whole","date_system":"1900"}

{"sheet":"SPA525G","index":0,"n_rows":19,"n_cols":234,"rows_kept":19,"cut":false,"hidden":false,"merged":[]}
["Cisco SPA525G Main Lines"]
[]
["Line #","HH #","Name"]
["Line 2",6103154,"N7YUT - Scott","fnc=blf+sd;sub=6103154@$PROXY;ext=6103154@PROXY;nme=N7YUT - Scott",null,null,null,null,null,null,null,null,null,null,null,null,null,null,null,null,null,null,null,null,null,null,null,null,null,null,null,null,null,null,null,null,null,null,null,null,null,null,null,null,null,null,null,null,null,null,null,null,null,null,null,null,null,null,null,null,null,null,null,null,null,null,null,null,null,null,null,null,null,null,null,null,null,null,null,null,null,null,null,null,null,null,null,null,null,null,null,null,null,null,null,null,null,null,null,null,null,null,null,null,null,null,null,null,null,null,null,null,null,null,null,null,null,null,null,null,null,null,null,null,null,null,null,null,null,null,null,null,null,null,null,null,null,null,null,null,null,null,null,null,null,null,null,null,null,null,null,null,null,null,null,null,null,null,null,null,null,null,null,null,null,null,null,null,null,null,null,null,null,null,null,null,null,null,null,null,null,null,null,null,null,null,null,null,null,null,null,null,null,null,null,null,null,null,null,null,null,null,null,null,null,null,null,null,null,null,null,null,null,null,null,null,null,null,null,null,null,null,null,null,null,null,null,null,null,null,null,null,null,{"$f":"IF(B4=\"\",\"\",CONCATENATE(\"fnc=blf+sd;sub=\",B4,\"@$PROXY;ext=\",B4,\"@PROXY;nme=\",C4))","v":"fnc=blf+sd;sub=6103154@$PROXY;ext=6103154@PROXY;nme=N7YUT - Scott"}]
["Line 3",6111585,"Robert","fnc=blf+sd;sub=6111585@$PROXY;ext=6111585@PROXY;nme=Robert",null,null,null,null,null,null,null,null,null,null,null,null,null,null,null,null,null,null,null,null,null,null,null,null,null,null,null,null,null,null,null,null,null,null,null,null,null,null,null,null,null,null,null,null,null,null,null,null,null,null,null,null,null,null,null,null,null,null,null,null,null,null,null,null,null,null,null,null,null,null,null,null,null,null,null,null,null,null,null,null,null,null,null,null,null,null,null,null,null,null,null,null,null,null,null,null,null,null,null,null,null,null,null,null,null,null,null,null,null,null,null,null,null,null,null,null,null,null,null,null,null,null,null,null,null,null,null,null,null,null,null,null,null,null,null,null,null,null,null,null,null,null,null,null,null,null,null,null,null,null,null,null,null,null,null,null,null,null,null,null,null,null,null,null,null,null,null,null,null,null,null,null,null,null,null,null,null,null,null,null,null,null,null,null,null,null,null,null,null,null,null,null,null,null,null,null,null,null,null,null,null,null,null,null,null,null,null,null,null,null,null,null,null,null,null,null,null,null,null,null,null,null,null,null,null,null,null,null,null,{"$f":"IF(B5=\"\",\"\",CONCATENATE(\"fnc=blf+sd;sub=\",B5,\"@$PROXY;ext=\",B5,\"@PROXY;nme=\",C5))","v":"fnc=blf+sd;sub=6111585@$PROXY;ext=6111585@PROXY;nme=Robert"}]
["Line 4",7031,"police","fnc=blf+sd;sub=7031@$PROXY;ext=7031@PROXY;nme=police",null,null,null,null,null,null,null,null,null,null,null,null,null,null,null,null,null,null,null,null,null,null,null,null,null,null,null,null,null,null,null,null,null,null,null,null,null,null,null,null,null,null,null,null,null,null,null,null,null,null,null,null,null,null,null,null,null,null,null,null,null,null,null,null,null,null,null,null,null,null,null,null,null,null,null,null,null,null,null,null,null,null,null,null,null,null,null,null,null,null,null,null,null,null,null,null,null,null,null,null,null,null,null,null,null,null,null,null,null,null,null,null,null,null,null,null,null,null,null,null,null,null,null,null,null,null,null,null,null,null,null,null,null,null,null,null,null,null,null,null,null,null,null,null,null,null,null,null,null,null,null,null,null,null,null,null,null,null,null,null,null,null,null,null,null,null,null,null,null,null,null,null,null,null,null,null,null,null,null,null,null,null,null,null,null,null,null,null,null,null,null,null,null,null,null,null,null,null,null,null,null,null,null,null,null,null,null,null,null,null,null,null,null,null,null,null,null,null,null,null,null,null,null,null,null,null,null,null,null,{"$f":"IF(B6=\"\",\"\",CONCATENATE(\"fnc=blf+sd;sub=\",B6,\"@$PROXY;ext=\",B6,\"@PROXY;nme=\",C6))","v":"fnc=blf+sd;sub=7031@$PROXY;ext=7031@PROXY;nme=police"}]
["Line 5",336,"Gathering Spot","fnc=blf+sd;sub=336@$PROXY;ext=336@PROXY;nme=Gathering Spot",null,null,null,null,null,null,null,null,null,null,null,null,null,null,null,null,null,null,null,null,null,null,null,null,null,null,null,null,null,null,null,null,null,null,null,null,null,null,null,null,null,null,null,null,null,null,null,null,null,null,null,null,null,null,null,null,null,null,null,null,null,null,null,null,null,null,null,null,null,null,null,null,null,null,null,null,null,null,null,null,null,null,null,null,null,null,null,null,null,null,null,null,null,null,null,null,null,null,null,null,null,null,null,null,null,null,null,null,null,null,null,null,null,null,null,null,null,null,null,null,null,null,null,null,null,null,null,null,null,null,null,null,null,null,null,null,null,null,null,null,null,null,null,null,null,null,null,null,null,null,null,null,null,null,null,null,null,null,null,null,null,null,null,null,null,null,null,null,null,null,null,null,null,null,null,null,null,null,null,null,null,null,null,null,null,null,null,null,null,null,null,null,null,null,null,null,null,null,null,null,null,null,null,null,null,null,null,null,null,null,null,null,null,null,null,null,null,null,null,null,null,null,null,null,null,null,null,null,null,{"$f":"IF(B7=\"\",\"\",CONCATENATE(\"fnc=blf+sd;sub=\",B7,\"@$PROXY;ext=\",B7,\"@PROXY;nme=\",C7))","v":"fnc=blf+sd;sub=336@$PROXY;ext=336@PROXY;nme=Gathering Spot"}]
[]
["Instructions:"]
[]
["Enter HH# and Name (Do not change Line 5 if you have your cell phone linked to phone via Bluetooth)"]
[]
[]
[]
["Log into your SPA525G web interface as administrator/advanced user (http://xxx.xxx.xxx.xxx/admin/advanced)"]
[]
["Click Voice then Phone on the top tabs of your web interface, you will now see the Extended Functions for line key 2-5"]
[]
["Copy (Ctrl-C) the Purple Text and Paste (Ctrl-V) into the web interface Extended Functions for line key 2-5"]

{"sheet":"Sidecar SPA500S","index":1,"n_rows":45,"n_cols":56,"rows_kept":45,"cut":false,"hidden":false,"merged":[[42,0,42,7],[38,0,38,7],[44,0,44,7],[37,0,37,7],[36,0,36,7],[43,0,43,7],[41,0,41,7],[39,0,39,7],[0,3,1,3],[0,4,1,4],[2,3,3,3],[2,4,3,4],[4,3,5,3],[4,4,5,4],[6,3,7,3],[6,4,7,4],[8,3,9,3],[8,4,9,4],[10,3,11,3],[10,4,11,4],[12,3,13,3],[12,4,13,4],[14,3,15,3],[14,4,15,4],[16,3,17,3],[16,4,17,4],[18,3,19,3],[18,4,19,4],[20,3,21,3],[20,4,21,4],[22,3,23,3],[22,4,23,4],[30,3,31,3],[30,4,31,4],[24,3,25,3],[24,4,25,4],[26,3,27,3],[26,4,27,4],[28,3,29,3],[28,4,29,4]]}
[1,17,null,{"$f":"A2","v":"Demo 1"},{"$f":"B2","v":"Demo 17"},null,1,"fnc=blf+sd;sub=1@$PROXY;ext=1@PROXY;nme=Demo 1",null,null,null,null,null,null,null,null,null,null,null,null,null,null,null,null,null,null,null,null,null,null,null,null,null,null,null,null,null,null,null,null,null,null,null,null,null,null,null,null,null,null,null,null,null,null,null,{"$f":"IF(A1=\"\",\"\",CONCATENATE(\"fnc=blf+sd;sub=\",A1,\"@$PROXY;ext=\",A1,\"@PROXY;nme=\",A2))","v":"fnc=blf+sd;sub=1@$PROXY;ext=1@PROXY;nme=Demo 1"}]
["Demo 1","Demo 17",null,null,null,null,2,"fnc=blf+sd;sub=2@$PROXY;ext=2@PROXY;nme=Demo 2",null,null,null,null,null,null,null,null,null,null,null,null,null,null,null,null,null,null,null,null,null,null,null,null,null,null,null,null,null,null,null,null,null,null,null,null,null,null,null,null,null,null,null,null,null,null,null,{"$f":"IF(A3=\"\",\"\",CONCATENATE(\"fnc=blf+sd;sub=\",A3,\"@$PROXY;ext=\",A3,\"@PROXY;nme=\",A4))","v":"fnc=blf+sd;sub=2@$PROXY;ext=2@PROXY;nme=Demo 2"}]
[2,18,null,{"$f":"A4","v":"Demo 2"},{"$f":"B4","v":"Demo 18"},null,3,"fnc=blf+sd;sub=3@$PROXY;ext=3@PROXY;nme=Demo 3",null,null,null,null,null,null,null,null,null,null,null,null,null,null,null,null,null,null,null,null,null,null,null,null,null,null,null,null,null,null,null,null,null,null,null,null,null,null,null,null,null,null,null,null,null,null,null,{"$f":"IF(A5=\"\",\"\",CONCATENATE(\"fnc=blf+sd;sub=\",A5,\"@$PROXY;ext=\",A5,\"@PROXY;nme=\",A6))","v":"fnc=blf+sd;sub=3@$PROXY;ext=3@PROXY;nme=Demo 3"}]
["Demo 2","Demo 18",null,null,null,null,4,"fnc=blf+sd;sub=4@$PROXY;ext=4@PROXY;nme=Demo 4",null,null,null,null,null,null,null,null,null,null,null,null,null,null,null,null,null,null,null,null,null,null,null,null,null,null,null,null,null,null,null,null,null,null,null,null,null,null,null,null,null,null,null,null,null,null,null,{"$f":"IF(A7=\"\",\"\",CONCATENATE(\"fnc=blf+sd;sub=\",A7,\"@$PROXY;ext=\",A7,\"@PROXY;nme=\",A8))","v":"fnc=blf+sd;sub=4@$PROXY;ext=4@PROXY;nme=Demo 4"}]
[3,19,null,{"$f":"A6","v":"Demo 3"},{"$f":"B6","v":"Demo 19"},null,5,"fnc=blf+sd;sub=5@$PROXY;ext=5@PROXY;nme=Demo 5",null,null,null,null,null,null,null,null,null,null,null,null,null,null,null,null,null,null,null,null,null,null,null,null,null,null,null,null,null,null,null,null,null,null,null,null,null,null,null,null,null,null,null,null,null,null,null,{"$f":"IF(A9=\"\",\"\",CONCATENATE(\"fnc=blf+sd;sub=\",A9,\"@$PROXY;ext=\",A9,\"@PROXY;nme=\",A10))","v":"fnc=blf+sd;sub=5@$PROXY;ext=5@PROXY;nme=Demo 5"}]
["Demo 3","Demo 19",null,null,null,null,6,"fnc=blf+sd;sub=6@$PROXY;ext=6@PROXY;nme=Demo 6",null,null,null,null,null,null,null,null,null,null,null,null,null,null,null,null,null,null,null,null,null,null,null,null,null,null,null,null,null,null,null,null,null,null,null,null,null,null,null,null,null,null,null,null,null,null,null,{"$f":"IF(A11=\"\",\"\",CONCATENATE(\"fnc=blf+sd;sub=\",A11,\"@$PROXY;ext=\",A11,\"@PROXY;nme=\",A12))","v":"fnc=blf+sd;sub=6@$PROXY;ext=6@PROXY;nme=Demo 6"}]
[4,20,null,{"$f":"A8","v":"Demo 4"},{"$f":"B8","v":"Demo 20"},null,7,"fnc=blf+sd;sub=7@$PROXY;ext=7@PROXY;nme=Demo 7",null,null,null,null,null,null,null,null,null,null,null,null,null,null,null,null,null,null,null,null,null,null,null,null,null,null,null,null,null,null,null,null,null,null,null,null,null,null,null,null,null,null,null,null,null,null,null,{"$f":"IF(A13=\"\",\"\",CONCATENATE(\"fnc=blf+sd;sub=\",A13,\"@$PROXY;ext=\",A13,\"@PROXY;nme=\",A14))","v":"fnc=blf+sd;sub=7@$PROXY;ext=7@PROXY;nme=Demo 7"}]
["Demo 4","Demo 20",null,null,null,null,8,"fnc=blf+sd;sub=8@$PROXY;ext=8@PROXY;nme=Demo 8",null,null,null,null,null,null,null,null,null,null,null,null,null,null,null,null,null,null,null,null,null,null,null,null,null,null,null,null,null,null,null,null,null,null,null,null,null,null,null,null,null,null,null,null,null,null,null,{"$f":"IF(A15=\"\",\"\",CONCATENATE(\"fnc=blf+sd;sub=\",A15,\"@$PROXY;ext=\",A15,\"@PROXY;nme=\",A16))","v":"fnc=blf+sd;sub=8@$PROXY;ext=8@PROXY;nme=Demo 8"}]
[5,21,null,{"$f":"A10","v":"Demo 5"},{"$f":"B10","v":"Demo 21"},null,9,"fnc=blf+sd;sub=9@$PROXY;ext=9@PROXY;nme=Demo 9",null,null,null,null,null,null,null,null,null,null,null,null,null,null,null,null,null,null,null,null,null,null,null,null,null,null,null,null,null,null,null,null,null,null,null,null,null,null,null,null,null,null,null,null,null,null,null,{"$f":"IF(A17=\"\",\"\",CONCATENATE(\"fnc=blf+sd;sub=\",A17,\"@$PROXY;ext=\",A17,\"@PROXY;nme=\",A18))","v":"fnc=blf+sd;sub=9@$PROXY;ext=9@PROXY;nme=Demo 9"}]
["Demo 5","Demo 21",null,null,null,null,10,"fnc=blf+sd;sub=10@$PROXY;ext=10@PROXY;nme=Demo 10",null,null,null,null,null,null,null,null,null,null,null,null,null,null,null,null,null,null,null,null,null,null,null,null,null,null,null,null,null,null,null,null,null,null,null,null,null,null,null,null,null,null,null,null,null,null,null,{"$f":"IF(A19=\"\",\"\",CONCATENATE(\"fnc=blf+sd;sub=\",A19,\"@$PROXY;ext=\",A19,\"@PROXY;nme=\",A20))","v":"fnc=blf+sd;sub=10@$PROXY;ext=10@PROXY;nme=Demo 10"}]
[6,7000,null,{"$f":"A12","v":"Demo 6"},{"$f":"B12","v":"WBZ 22"},null,11,"fnc=blf+sd;sub=11@$PROXY;ext=11@PROXY;nme=Demo 11",null,null,null,null,null,null,null,null,null,null,null,null,null,null,null,null,null,null,null,null,null,null,null,null,null,null,null,null,null,null,null,null,null,null,null,null,null,null,null,null,null,null,null,null,null,null,null,{"$f":"IF(A21=\"\",\"\",CONCATENATE(\"fnc=blf+sd;sub=\",A21,\"@$PROXY;ext=\",A21,\"@PROXY;nme=\",A22))","v":"fnc=blf+sd;sub=11@$PROXY;ext=11@PROXY;nme=Demo 11"}]
["Demo 6","WBZ 22",null,null,null,null,12,"fnc=blf+sd;sub=12@$PROXY;ext=12@PROXY;nme=Demo 12",null,null,null,null,null,null,null,null,null,null,null,null,null,null,null,null,null,null,null,null,null,null,null,null,null,null,null,null,null,null,null,null,null,null,null,null,null,null,null,null,null,null,null,null,null,null,null,{"$f":"IF(A23=\"\",\"\",CONCATENATE(\"fnc=blf+sd;sub=\",A23,\"@$PROXY;ext=\",A23,\"@PROXY;nme=\",A24))","v":"fnc=blf+sd;sub=12@$PROXY;ext=12@PROXY;nme=Demo 12"}]
[7,7002,null,{"$f":"A14","v":"Demo 7"},{"$f":"B14","v":"OTR 23"},null,13,"fnc=blf+sd;sub=13@$PROXY;ext=13@PROXY;nme=Demo 13",null,null,null,null,null,null,null,null,null,null,null,null,null,null,null,null,null,null,null,null,null,null,null,null,null,null,null,null,null,null,null,null,null,null,null,null,null,null,null,null,null,null,null,null,null,null,null,{"$f":"IF(A25=\"\",\"\",CONCATENATE(\"fnc=blf+sd;sub=\",A25,\"@$PROXY;ext=\",A25,\"@PROXY;nme=\",A26))","v":"fnc=blf+sd;sub=13@$PROXY;ext=13@PROXY;nme=Demo 13"}]
["Demo 7","OTR 23",null,null,null,null,14,"fnc=blf+sd;sub=14@$PROXY;ext=14@PROXY;nme=Demo 14",null,null,null,null,null,null,null,null,null,null,null,null,null,null,null,null,null,null,null,null,null,null,null,null,null,null,null,null,null,null,null,null,null,null,null,null,null,null,null,null,null,null,null,null,null,null,null,{"$f":"IF(A27=\"\",\"\",CONCATENATE(\"fnc=blf+sd;sub=\",A27,\"@$PROXY;ext=\",A27,\"@PROXY;nme=\",A28))","v":"fnc=blf+sd;sub=14@$PROXY;ext=14@PROXY;nme=Demo 14"}]
[8,7003,null,{"$f":"A16","v":"Demo 8"},{"$f":"B16","v":"BBC 24"},null,15,"fnc=blf+sd;sub=15@$PROXY;ext=15@PROXY;nme=Demo 15",null,null,null,null,null,null,null,null,null,null,null,null,null,null,null,null,null,null,null,null,null,null,null,null,null,null,null,null,null,null,null,null,null,null,null,null,null,null,null,null,null,null,null,null,null,null,null,{"$f":"IF(A29=\"\",\"\",CONCATENATE(\"fnc=blf+sd;sub=\",A29,\"@$PROXY;ext=\",A29,\"@PROXY;nme=\",A30))","v":"fnc=blf+sd;sub=15@$PROXY;ext=15@PROXY;nme=Demo 15"}]
["Demo 8","BBC 24",null,null,null,null,16,"fnc=blf+sd;sub=16@$PROXY;ext=16@PROXY;nme=Demo 16",null,null,null,null,null,null,null,null,null,null,null,null,null,null,null,null,null,null,null,null,null,null,null,null,null,null,null,null,null,null,null,null,null,null,null,null,null,null,null,null,null,null,null,null,null,null,null,{"$f":"IF(A31=\"\",\"\",CONCATENATE(\"fnc=blf+sd;sub=\",A31,\"@$PROXY;ext=\",A31,\"@PROXY;nme=\",A32))","v":"fnc=blf+sd;sub=16@$PROXY;ext=16@PROXY;nme=Demo 16"}]
[9,7004,null,{"$f":"A18","v":"Demo 9"},{"$f":"B18","v":"WUWF 25"},null,17,"fnc=blf+sd;sub=17@$PROXY;ext=17@PROXY;nme=Demo 17",null,null,null,null,null,null,null,null,null,null,null,null,null,null,null,null,null,null,null,null,null,null,null,null,null,null,null,null,null,null,null,null,null,null,null,null,null,null,null,null,null,null,null,null,null,null,null,{"$f":"IF(B1=\"\",\"\",CONCATENATE(\"fnc=blf+sd;sub=\",B1,\"@$PROXY;ext=\",B1,\"@PROXY;nme=\",B2))","v":"fnc=blf+sd;sub=17@$PROXY;ext=17@PROXY;nme=Demo 17"}]
["Demo 9","WUWF 25",null,null,null,null,18,"fnc=blf+sd;sub=18@$PROXY;ext=18@PROXY;nme=Demo 18",null,null,null,null,null,null,null,null,null,null,null,null,null,null,null,null,null,null,null,null,null,null,null,null,null,null,null,null,null,null,null,null,null,null,null,null,null,null,null,null,null,null,null,null,null,null,null,{"$f":"IF(B3=\"\",\"\",CONCATENATE(\"fnc=blf+sd;sub=\",B3,\"@$PROXY;ext=\",B3,\"@PROXY;nme=\",B4))","v":"fnc=blf+sd;sub=18@$PROXY;ext=18@PROXY;nme=Demo 18"}]
[10,7005,null,{"$f":"A20","v":"Demo 10"},{"$f":"B20","v":"WHJJ 24"},null,19,"fnc=blf+sd;sub=19@$PROXY;ext=19@PROXY;nme=Demo 19",null,null,null,null,null,null,null,null,null,null,null,null,null,null,null,null,null,null,null,null,null,null,null,null,null,null,null,null,null,null,null,null,null,null,null,null,null,null,null,null,null,null,null,null,null,null,null,{"$f":"IF(B5=\"\",\"\",CONCATENATE(\"fnc=blf+sd;sub=\",B5,\"@$PROXY;ext=\",B5,\"@PROXY;nme=\",B6))","v":"fnc=blf+sd;sub=19@$PROXY;ext=19@PROXY;nme=Demo 19"}]
["Demo 10","WHJJ 24",null,null,null,null,20,"fnc=blf+sd;sub=20@$PROXY;ext=20@PROXY;nme=Demo 20",null,null,null,null,null,null,null,null,null,null,null,null,null,null,null,null,null,null,null,null,null,null,null,null,null,null,null,null,null,null,null,null,null,null,null,null,null,null,null,null,null,null,null,null,null,null,null,{"$f":"IF(B7=\"\",\"\",CONCATENATE(\"fnc=blf+sd;sub=\",B7,\"@$PROXY;ext=\",B7,\"@PROXY;nme=\",B8))","v":"fnc=blf+sd;sub=20@$PROXY;ext=20@PROXY;nme=Demo 20"}]
[11,7006,null,{"$f":"A22","v":"Demo 11"},{"$f":"B22","v":"PARANORMAL"},null,21,"fnc=blf+sd;sub=21@$PROXY;ext=21@PROXY;nme=Demo 21",null,null,null,null,null,null,null,null,null,null,null,null,null,null,null,null,null,null,null,null,null,null,null,null,null,null,null,null,null,null,null,null,null,null,null,null,null,null,null,null,null,null,null,null,null,null,null,{"$f":"IF(B9=\"\",\"\",CONCATENATE(\"fnc=blf+sd;sub=\",B9,\"@$PROXY;ext=\",B9,\"@PROXY;nme=\",B10))","v":"fnc=blf+sd;sub=21@$PROXY;ext=21@PROXY;nme=Demo 21"}]
["Demo 11","PARANORMAL",null,null,null,null,22,"fnc=blf+sd;sub=7000@$PROXY;ext=7000@PROXY;nme=WBZ 22",null,null,null,null,null,null,null,null,null,null,null,null,null,null,null,null,null,null,null,null,null,null,null,null,null,null,null,null,null,null,null,null,null,null,null,null,null,null,null,null,null,null,null,null,null,null,null,{"$f":"IF(B11=\"\",\"\",CONCATENATE(\"fnc=blf+sd;sub=\",B11,\"@$PROXY;ext=\",B11,\"@PROXY;nme=\",B12))","v":"fnc=blf+sd;sub=7000@$PROXY;ext=7000@PROXY;nme=WBZ 22"}]
[12,7010,null,{"$f":"A24","v":"Demo 12"},{"$f":"B24","v":"MORSE CODE 28"},null,23,"fnc=blf+sd;sub=7002@$PROXY;ext=7002@PROXY;nme=OTR 23",null,null,null,null,null,null,null,null,null,null,null,null,null,null,null,null,null,null,null,null,null,null,null,null,null,null,null,null,null,null,null,null,null,null,null,null,null,null,null,null,null,null,null,null,null,null,null,{"$f":"IF(B13=\"\",\"\",CONCATENATE(\"fnc=blf+sd;sub=\",B13,\"@$PROXY;ext=\",B13,\"@PROXY;nme=\",B14))","v":"fnc=blf+sd;sub=7002@$PROXY;ext=7002@PROXY;nme=OTR 23"}]
["Demo 12","MORSE CODE 28",null,null,null,null,24,"fnc=blf+sd;sub=7003@$PROXY;ext=7003@PROXY;nme=BBC 24",null,null,null,null,null,null,null,null,null,null,null,null,null,null,null,null,null,null,null,null,null,null,null,null,null,null,null,null,null,null,null,null,null,null,null,null,null,null,null,null,null,null,null,null,null,null,null,{"$f":"IF(B15=\"\",\"\",CONCATENATE(\"fnc=blf+sd;sub=\",B15,\"@$PROXY;ext=\",B15,\"@PROXY;nme=\",B16))","v":"fnc=blf+sd;sub=7003@$PROXY;ext=7003@PROXY;nme=BBC 24"}]
[13,7012,null,{"$f":"A26","v":"Demo 13"},{"$f":"B26","v":"KVMR 29"},null,25,"fnc=blf+sd;sub=7004@$PROXY;ext=7004@PROXY;nme=WUWF 25",null,null,null,null,null,null,null,null,null,null,null,null,null,null,null,null,null,null,null,null,null,null,null,null,null,null,null,null,null,null,null,null,null,null,null,null,null,null,null,null,null,null,null,null,null,null,null,{"$f":"IF(B17=\"\",\"\",CONCATENATE(\"fnc=blf+sd;sub=\",B17,\"@$PROXY;ext=\",B17,\"@PROXY;nme=\",B18))","v":"fnc=blf+sd;sub=7004@$PROXY;ext=7004@PROXY;nme=WUWF 25"}]
["Demo 13","KVMR 29",null,null,null,null,26,"fnc=blf+sd;sub=7005@$PROXY;ext=7005@PROXY;nme=WHJJ 24",null,null,null,null,null,null,null,null,null,null,null,null,null,null,null,null,null,null,null,null,null,null,null,null,null,null,null,null,null,null,null,null,null,null,null,null,null,null,null,null,null,null,null,null,null,null,null,{"$f":"IF(B19=\"\",\"\",CONCATENATE(\"fnc=blf+sd;sub=\",B19,\"@$PROXY;ext=\",B19,\"@PROXY;nme=\",B20))","v":"fnc=blf+sd;sub=7005@$PROXY;ext=7005@PROXY;nme=WHJJ 24"}]
[14,7015,null,{"$f":"A28","v":"Demo 14"},{"$f":"B28","v":"OLDIES 30"},null,27,"fnc=blf+sd;sub=7006@$PROXY;ext=7006@PROXY;nme=PARANORMAL",null,null,null,null,null,null,null,null,null,null,null,null,null,null,null,null,null,null,null,null,null,null,null,null,null,null,null,null,null,null,null,null,null,null,null,null,null,null,null,null,null,null,null,null,null,null,null,{"$f":"IF(B21=\"\",\"\",CONCATENATE(\"fnc=blf+sd;sub=\",B21,\"@$PROXY;ext=\",B21,\"@PROXY;nme=\",B22))","v":"fnc=blf+sd;sub=7006@$PROXY;ext=7006@PROXY;nme=PARANORMAL"}]
["Demo 14","OLDIES 30",null,null,null,null,28,"fnc=blf+sd;sub=7010@$PROXY;ext=7010@PROXY;nme=MORSE CODE 28",null,null,null,null,null,null,null,null,null,null,null,null,null,null,null,null,null,null,null,null,null,null,null,null,null,null,null,null,null,null,null,null,null,null,null,null,null,null,null,null,null,null,null,null,null,null,null,{"$f":"IF(B23=\"\",\"\",CONCATENATE(\"fnc=blf+sd;sub=\",B23,\"@$PROXY;ext=\",B23,\"@PROXY;nme=\",B24))","v":"fnc=blf+sd;sub=7010@$PROXY;ext=7010@PROXY;nme=MORSE CODE 28"}]
[15,7023,null,{"$f":"A30","v":"Demo 15"},{"$f":"B30","v":"NPR 31"},null,29,"fnc=blf+sd;sub=7012@$PROXY;ext=7012@PROXY;nme=KVMR 29",null,null,null,null,null,null,null,null,null,null,null,null,null,null,null,null,null,null,null,null,null,null,null,null,null,null,null,null,null,null,null,null,null,null,null,null,null,null,null,null,null,null,null,null,null,null,null,{"$f":"IF(B25=\"\",\"\",CONCATENATE(\"fnc=blf+sd;sub=\",B25,\"@$PROXY;ext=\",B25,\"@PROXY;nme=\",B26))","v":"fnc=blf+sd;sub=7012@$PROXY;ext=7012@PROXY;nme=KVMR 29"}]
["Demo 15","NPR 31",null,null,null,null,30,"fnc=blf+sd;sub=7015@$PROXY;ext=7015@PROXY;nme=OLDIES 30",null,null,null,null,null,null,null,null,null,null,null,null,null,null,null,null,null,null,null,null,null,null,null,null,null,null,null,null,null,null,null,null,null,null,null,null,null,null,null,null,null,null,null,null,null,null,null,{"$f":"IF(B27=\"\",\"\",CONCATENATE(\"fnc=blf+sd;sub=\",B27,\"@$PROXY;ext=\",B27,\"@PROXY;nme=\",B28))","v":"fnc=blf+sd;sub=7015@$PROXY;ext=7015@PROXY;nme=OLDIES 30"}]
[16,7030,null,{"$f":"A32","v":"Demo 16"},{"$f":"B32","v":"WTKK 32"},null,31,"fnc=blf+sd;sub=7023@$PROXY;ext=7023@PROXY;nme=NPR 31",null,null,null,null,null,null,null,null,null,null,null,null,null,null,null,null,null,null,null,null,null,null,null,null,null,null,null,null,null,null,null,null,null,null,null,null,null,null,null,null,null,null,null,null,null,null,null,{"$f":"IF(B29=\"\",\"\",CONCATENATE(\"fnc=blf+sd;sub=\",B29,\"@$PROXY;ext=\",B29,\"@PROXY;nme=\",B30))","v":"fnc=blf+sd;sub=7023@$PROXY;ext=7023@PROXY;nme=NPR 31"}]
["Demo 16","WTKK 32",null,null,null,null,32,"fnc=blf+sd;sub=7030@$PROXY;ext=7030@PROXY;nme=WTKK 32",null,null,null,null,null,null,null,null,null,null,null,null,null,null,null,null,null,null,null,null,null,null,null,null,null,null,null,null,null,null,null,null,null,null,null,null,null,null,null,null,null,null,null,null,null,null,null,{"$f":"IF(B31=\"\",\"\",CONCATENATE(\"fnc=blf+sd;sub=\",B31,\"@$PROXY;ext=\",B31,\"@PROXY;nme=\",B32))","v":"fnc=blf+sd;sub=7030@$PROXY;ext=7030@PROXY;nme=WTKK 32"}]
[]
[]
[]
[]
["Instructions:"]
[{"$f":"IF(A44=\"\",\"\",CONCATENATE(\"fnc=blf+cp+sd;sub=\",A44,\"@$PROXY;ext=\",A44,\"@PROXY;nme=\",A45))","v":""}]
["Fill in your data in columns A & B that you want to appear on your SPA500S sidecar."]
[{"$f":"IF(A48=\"\",\"\",CONCATENATE(\"fnc=blf+cp+sd;sub=\",A48,\"@$PROXY;ext=\",A48,\"@PROXY;nme=\",A49))","v":""}]
["Click this button"]
[{"$f":"IF(A52=\"\",\"\",CONCATENATE(\"fnc=blf+cp+sd;sub=\",A52,\"@$PROXY;ext=\",A52,\"@PROXY;nme=\",A53))","v":""}]
["Now you can copy the data in column H one at a time to your phones web interface (Advanced > ATT Console)"]
[]
["Then Print this page to create your sidecar label"]

{"sheet":"Dial Outside Line","index":2,"n_rows":7,"n_cols":55,"rows_kept":7,"cut":false,"hidden":false,"merged":[]}
["If you set up your cell phone via bluetooth to line 5, then this conversion will allow you to dial to an outside number with line 5"]
["then this conversion will allow you to dial to an outside number with line 5"]
[]
["Phone Number:","3023327092"]
["Name:","HRO Delaware"]
[null,"fnc=sd;ext=3023327092;vid=5;nme=HRO Delaware"]
[null,null,null,null,null,null,null,null,null,null,null,null,null,null,null,null,null,null,null,null,null,null,null,null,null,null,null,null,null,null,null,null,null,null,null,null,null,null,null,null,null,null,null,null,null,null,null,null,null,null,null,null,null,null,{"$f":"IF(B4=\"\",\"\",CONCATENATE(\"fnc=sd;ext=\",B4,\";vid=5;nme=\",B5))","v":"fnc=sd;ext=3023327092;vid=5;nme=HRO Delaware"}]